{"text_format":"1","workbook":"xlsx","n_sheets":3,"sheets":["1999_00-Deutsch","CF Deutsch","CF_AR"],"not_rendered":{"charts":0,"images":0,"macros":0,"external_links":0,"defined_names":11,"comments":0,"pivot_tables":0},"unopened":[],"bounds":{"document_bytes":16777216,"sheet_cells":100000,"rows_first":2000,"rows_last":500,"rows_between":2000,"halvings":0,"cell_chars":16384,"cell_head_chars":4096},"cells_cut":0,"cells_raw":0,"read":"whole","date_system":"1904"}

{"sheet":"1999_00-Deutsch","index":0,"n_rows":68,"n_cols":9,"rows_kept":68,"cut":false,"hidden":true,"merged":[]}
["Asclepion-Meditec AG"]
["Kapitalflussrechnung"]
["für die Geschäftsjahre zum 30. September 2000 und 2001"]
[]
[null,null,null,null,null,null,1.95583]
[null,null,null,null,null,null,"30. September",null,"30. September"]
[null,null,null,null,null,null,2000,null,2001]
[null,null,null,null,null,null,"TDM",null,"TDM"]
[]
[]
["Cash Flow aus laufender Geschäftstätigkeit:"]
[null,"Jahresüberschuss ",null,null,null,null,3827,null,-14865]
[null,"Anpassung zur Überleitung des Jahresüberschusses/Jahresfehlbetrags"]
[null,"zur Nettoveränderung der liquiden Mittel aus laufender Geschäftstätigkeit:"]
[null,null,"Abschreibungen",null,null,null,2273,null,2334]
[null,null,"Verluste /(Gewinne) aus Abgang von Sachanlagevermögen",null,null,null,-72,null,85]
[null,null,"Zahlungsunwirksame Erträge",null,null,null,0,null,{"$f":"-(4418+5400+4271+794)","v":-14883}]
[null,null,"Zuführung zu Wertberichtigungen",null,null,null,0,null,13190]
[null,null,"Auswirkung von Wechselkursänderungen",null,null,null,-1815,null,0]
[null,null,"Anpassung Ertragsteuern für Kosten im Zusammenhang mit dem Börsengang",null,null,null,5291,null,0]
[null,null,"Latente Steuern",null,null,null,-706,null,{"$f":"-4271+505","v":-3766}]
[null,null,"Veränderung bei Vermögensgegenständen und Verbindlichkeiten:"]
[null,null,"Erhöhung der Forderungen an verbundene Unternehmen","(Erhöhung) / Verringerung der Forderungen"]
[null,null,null,null,"und Dritte",null,-23032,null,-3319]
[null,null,"Erhöhung Vorräte","Erhöhung Vorräte",null,null,-1529,null,-8688]
[null,null,"(Erhöhung) / Verringerung der aktiven Rechnungs-","(Erhöhung) / Verringerung der aktiven Rechnungs-"]
[null,null,null,null,"abgrenzung und sonstiger Vermögensgegenstände",null,-1432,null,-4835]
[null,null,"(Erhöhung) / Verringerung aktivierter Börseneinführungskosten","Erhöhung aktivierter Börseneinführungskosten",null,null,500,null,0]
[null,null,"Erhöhung / (Verringerung) der Verbindlichkeiten","Erhöhung / (Verringerung) der Verbindlichkeiten"]
[null,null,null,null,"an verbundene Unternehmen und Dritte",null,1616,null,{"$f":"-523","v":-523}]
[null,null,"Erhöhung / (Verringerung) der Rückstellungen, passiven ","Erhöhung / (Verringerung) der Rückstellungen, passiven "]
[null,null,null,null,"Rechnungsabgrenzungen und sonstigen Verbindlichkeiten",null,3088,null,1311]
[null,null,null,null,"Gesamte Anpassungen",null,{"$f":"SUM(G15:G32)-1","v":-15819},null,{"$f":"SUM(I15:I32)","v":-19094}]
[null,null,null,"    Netto-Kapitalzufluss (-abfluss) aus laufender Geschäftstätigkeit","Netto-Kapitalabfluss aus laufender Geschäftstätigkeit",null,{"$f":"+G12+G33","v":-11992},null,{"$f":"+I12+I33","v":-33959}]
["Cash Flow aus der Investitionstätigkeit:"]
[null,"Erwerb von Sachanlagevermögen",null,null,null,null,-2255,null,-17862]
[null,"Erlöse aus dem Verkauf von Sachanlagevermögen",null,null,null,null,125,null,14]
[null,"Erwerb von Minderheitenbeteiligungen an nahestehenden Unternehmen",null,null,null,null,-3548,null,-1301]
[null,"Gewährung von Darlehen",null,null,null,null,-113,null,-6984]
[null,null,null,null,"Netto-Kapitalabfluss aus Investitionstätigkeit",null,{"$f":"SUM(G36:G39)","v":-5791},null,{"$f":"SUM(I36:I39)","v":-26133}]
["Cash Flow aus Finanzierungstätigkeit:"]
[null,"Einnahmen aus der Ausgabe von Stückaktien",null,null,null,null,113994,null,0]
[null,"Aufnahme kurzfristiger Kredite",null,null,null,null,86,null,3162]
[null,"Rückzahlung kurzfristiger Kredite",null,null,null,null,-29386,null,-86]
[null,"Aufnahme langfristiger Kredite",null,null,null,null,125,null,10500]
[null,"Rückzahlung langfristiger Kredite",null,null,null,null,-1914,null,-90]
[null,"Rückzahlungen unter Leasingverträgen",null,null,null,null,-80,null,-686]
[null,"Erlöse aus Sale/Leaseback Transaktion",null,null,null,null,980,null,2681]
[null,null,null,null,"Netto-Kapitalzufluss aus Finanzierungstätigkeit",null,{"$f":"SUM(G42:G48)","v":83805},null,{"$f":"SUM(I42:I48)","v":15481}]
["Auswirkung von Wechselkursänderungen",null,null,null,null,null,-10,null,23]
["Netto-Erhöhung (Verringerung) der liquiden Mittel",null,null,null,null,null,{"$f":"+G34+G40+G49+G50-1","v":66011},null,{"$f":"+I34+I40+I49+I50","v":-44588}]
["Liquide Mittel am Jahresbeginn",null,null,null,null,null,168,null,66179]
["Liquide Mittel am Jahresende",null,null,null,null,null,{"$f":"+G51+G52","v":66179},null,{"$f":"+I51+I52","v":21591}]
[]
["Ergänzende Angaben zum Cash Flow:"]
[null,"gezahlte Zinsen",null,null,null,null,361.99465188692267,null,850]
[null,"gezahlte Steuern vom Einkommen und Ertrag",null,null,null,null,1012.3579247685126,null,1265]
[]
["Nicht zahlungswirksame Investitions- und Finanzierungstätigkeiten"]
[null,"Umwandlung der Kapitalrücklage in Grundkapital",null,null,null,null,3748.7920729306738,null,0]
[null,"Umwandlung Verbindlichkeiten für deferred shares in Grundkapital",null,null,null,null,199.91512554772143,null,0]
[null,"Umwandlung Verbindlichkeiten für deferred shares in Kapitalrücklage",null,null,null,null,399.83025109544286,null,0]
[null,"Umbuchung von Vorratsvermögen in Sachanlagevermögen",null,null,null,null,161,null,369]
[null,"Umbuchung von Forderungen aus Lieferungen und Leistungen"]
[null,null,"in Finanzanlagen",null,null,null,0,null,6260]
[]
[]
["Auf die nachfolgenden Erläuterungen im Anhang wird verwiesen"]

{"sheet":"CF Deutsch","index":1,"n_rows":67,"n_cols":9,"rows_kept":67,"cut":false,"hidden":false,"merged":[[2,0,2,8],[1,0,1,8]]}
[]
["Carl Zeiss Meditec AG"]
["Konzern-Kapitalflussrechnung (IFRS) 1.10.2015 bis 31.12.2015"]
[]
[null,null,null,null,null,null,"2015/16",null,"2014/15"]
[null,null,null,null,null,"Anhang","1.10.2015 bis 31.12.2015",null,"1.10.2014 bis 31.12.2014"]
[]
[null,null,null,null,null,null,"Tsd. €",null,{"$f":"+G8","v":"Tsd. €"}]
[]
["Cashflow aus der gewöhnlichen Geschäftstätigkeit:"]
[]
[null,"Konzernergebnis",null,null,null,null,{"$f":"16721+354","v":17075},null,19413]
[]
[null,"Anpassung zur Überleitung des Konzernergebnisses"]
[null,"zur Nettoveränderung der liquiden Mittel aus laufender Geschäftstätigkeit:"]
[]
[null,"Ertragsteueraufwand",null,null,null,"(7)",8397,null,9226]
[null,"Zinserträge / Zinsaufwendungen",null,null,null,"(6)",647,null,357]
[null,"Ergebnis aus At-Equity bewerteten Finanzanlagen",null,null,null,"(6)",2466,null,0]
[null,"Abschreibungen",null,null,null,"(11) (12)",4694,null,4613]
[null,"Gezahlte Zinsen",null,null,null,null,-387,null,-321]
[null,"Erstattete Ertragsteuern",null,null,null,null,63,null,657]
[null,"Gezahlte Ertragsteuern",null,null,null,null,-10314,null,-10475]
[]
[null,"Veränderungen des Working Capitals:"]
[]
[null,null,"Forderungen aus Lieferungen und Leistungen",null,null,"(17)",12379,null,-13436]
[null,null,"Vorräte",null,null,"(16)",-12313,null,-10948]
[null,null,"Sonstige Vermögenswerte",null,null,"(15) (18) (19)",665,null,-754]
[null,null,"Verbindlichkeiten aus Lieferungen und Leistungen",null,null,null,-19011,null,-13718]
[null,null,"Rückstellungen und finanzielle Verbindlichkeiten",null,null,"(22) (23) (25)",4981,null,-331]
[null,null,"Sonstige Verbindlichkeiten",null,null,"(26)",-2361,null,6700]
[]
[null,"Gesamte Anpassungen",null,null,null,null,{"$f":"SUM(G17:G33)","v":-10094},null,{"$f":"SUM(I17:I33)","v":-28430}]
[null,"Netto-Kapitalzufluss aus der gewöhnlichen Geschäftstätigkeit",null,null,null,null,{"$f":"+G12+G34","v":6981},null,{"$f":"+I12+I34","v":-9017}]
[]
["Cashflow aus der Investitionstätigkeit:"]
[]
[null,"Investitionen in Sachanlagen",null,null,null,"(12)",-1808,null,-2900]
[null,"Investitionen in sonstige immaterielle Vermögenswerte",null,null,null,"(11)",-2691,null,-1406]
[null,"Erlöse aus dem Verkauf von Anlagevermögen",null,null,null,null,15,null,9]
[null,"Erwerb von nach der Equity Methode bilanzierten Beteiligungen",null,null,null,"(13)",-2484,null,-1975]
[null,"Auszahlungen für sonstige Ausleihungen ",null,null,null,"(27)",-690,null,0]
[null,"Einzahlungen aus Festgeldanlagen",null,null,null,"(33)",110000,null,0]
[]
[null,"Netto-Kapitalabfluss aus der Investitionstätigkeit",null,null,null,null,{"$f":"SUM(G39:G44)","v":102342},null,{"$f":"SUM(I39:I44)","v":-6272}]
[]
["Cashflow aus der Finanzierungstätigkeit:"]
[null,"Aufnahme/(Rückzahlung) der kurzfristigen Kredite",null,null,null,null,948,null,-334]
[null,"Aufnahme/(Rückzahlung) der langfristigen Kredite",null,null,null,"(24)",-123,null,-119]
[null,"(Zunahme)/Abnahme der Forderungen aus Finanzausgleich",null,null,null,"(2u) (33)",-104791,null,6519]
[null,"Zunahme/(Abnahme) der Verbindlichkeiten aus Finanzausgleich",null,null,null,"(2u) (33)",-2222,null,8527]
[null,"Zunahme/(Abnahme) der Verbindlichkeiten aus Finanzierungsleasing",null,null,null,"(28)",-712,null,-568]
[null,"Einnahmen aus Kapitalerhöhung",null,null,null,"(24)"]
[null,"Kosten der Kapitalerhöhung (vor Steuern)",null,null,null,"(24)"]
[null,"Dividendenzahlung an Minderheitsaktionäre der Carl Zeiss Meditec Co. Ltd. (Japan)",null,null,null,"(13)"]
[null,"Dividendenzahlung an die Aktionäre der Carl Zeiss Meditec AG",null,null,null,"(9)",0,null,0]
[null,"Erwerb von Anteilen nicht-beherrschender Gesellschafter"]
[]
[null,"Netto-Kapitalzufluss/(-abfluss) aus der Finanzierungstätigkeit",null,null,null,null,{"$f":"SUM(G48:G59)","v":-106900},null,{"$f":"SUM(I48:I59)","v":14025}]
[]
["Einfluss von Wechselkursänderungen auf Zahlungsmittel und Zahlungsmitteläquivalente",null,null,null,null,null,{"$f":"386-1","v":385},null,{"$f":"-4","v":-4}]
["Zunahme/(Abnahme) der Zahlungsmittel und Zahlungsmitteläquivalente",null,null,null,null,null,{"$f":"+G35+G46+G60+G62","v":2808},null,{"$f":"+I35+I46+I60+I62","v":-1268}]
["Zahlungsmittel und Zahlungsmitteläquivalente am Beginn des Berichtszeitraumes",null,null,null,null,"(20)",13041,null,10727]
["Zahlungsmittel und Zahlungsmitteläquivalente am Ende des Berichtszeitraumes",null,null,null,null,"(20)",{"$f":"+G63+G64","v":15849},null,{"$f":"+I63+I64","v":9459}]
[]
["Der nachfolgende Konzernanhang ist integraler Bestandteil des ungeprüften Konzernabschlusses."]

{"sheet":"CF_AR","index":2,"n_rows":27,"n_cols":8,"rows_kept":27,"cut":false,"hidden":true,"merged":[[0,0,0,7],[1,0,1,7],[2,0,2,7]]}
["Carl Zeiss Meditec AG"]
["selected positions"]
["Consolidated statement of cash flow (US GAAP)"]
[]
[null,null,null,null,null,"1. October 2001 -",null,"1. October 2002 -"]
[null,null,null,null,null,"30. June 2002",null,"30. June 2003"]
[null,null,null,null,null,"Tsd. Euro",null,"Tsd. Euro"]
[]
[]
["Cash flow from operating activities"]
[null,null,"Net income",null,null,{"$f":"+'CF Deutsch'!G12","v":17075},null,{"$f":"+'CF Deutsch'!I12","v":19413}]
[null,null,"Loss on disposal of discontinued operations",null,null,{"$f":"+'CF Deutsch'!#REF!","v":{"$error":"#REF!"}},null,{"$f":"+'CF Deutsch'!#REF!","v":{"$error":"#REF!"}}]
[null,null,"Depreciation and amortisation",null,null,{"$f":"+'CF Deutsch'!G20","v":4694},null,{"$f":"+'CF Deutsch'!I20","v":4613}]
[null,null,"Trade accounts receivable",null,null,{"$f":"+'CF Deutsch'!G27","v":12379},null,{"$f":"+'CF Deutsch'!I27","v":-13436}]
[null,null,"Inventories",null,null,{"$f":"+'CF Deutsch'!G28","v":-12313},null,{"$f":"+'CF Deutsch'!I28","v":-10948}]
[null,null,"Trade accounts payable",null,null,{"$f":"+'CF Deutsch'!G30","v":-19011},null,{"$f":"+'CF Deutsch'!I30","v":-13718}]
[null,null,"Accrued tax expenses","Erhöhung Vorräte",null,{"$f":"+'CF Deutsch'!#REF!","v":{"$error":"#REF!"}},null,{"$f":"+'CF Deutsch'!#REF!","v":{"$error":"#REF!"}}]
[null,null,"Other accrued expenses and liabilities","(Erhöhung) / Verringerung der aktiven Rechnungs-",null,{"$f":"+'CF Deutsch'!G31","v":4981},null,{"$f":"+'CF Deutsch'!I31","v":-331}]
[]
["Cash flow from investing activities",null,null,null,null,{"$f":"+'CF Deutsch'!G46","v":102342},null,{"$f":"+'CF Deutsch'!I46","v":-6272}]
[]
["Cash flow from financing activities"]
[null,"Proceeds from issuance of short-term debt from related parties",null,null,null,{"$f":"+'CF Deutsch'!#REF!","v":{"$error":"#REF!"}},null,{"$f":"+'CF Deutsch'!#REF!","v":{"$error":"#REF!"}}]
[null,"Increase / (decrease) in liabilities due to Treasury",null,null,null,{"$f":"+'CF Deutsch'!#REF!","v":{"$error":"#REF!"}},null,{"$f":"+'CF Deutsch'!#REF!","v":{"$error":"#REF!"}}]
[null,"(Increase) / decrease in accounts receivable due to Treasury",null,null,null,{"$f":"+'CF Deutsch'!G51","v":-104791},null,{"$f":"+'CF Deutsch'!I51","v":6519}]
[]
["Net increase in cash (compared to Oct 1)",null,null,null,null,{"$f":"+'CF Deutsch'!G63","v":2808},null,{"$f":"+'CF Deutsch'!I63","v":-1268}]